[Event "Early-Titled-Tuesday-Blitz-January-16-2024"]
[Site "Chess.com"]
[Date "2024.01.16"]
[Round "5"]
[White "ChessGiantYouTube"]
[Black "LeoLV10"]
[Result "1-0"]
[WhiteElo "2212"]
[BlackElo "2437"]
[TimeControl "180+1"]
[EndTime "9:00:28 PST"]
[Termination "ChessGiantYouTube won by resignation"]

1. g3 {[%clk 0:03:00.9]} 1... Nf6 {[%clk 0:02:59.8]} 2. Bg2 {[%clk 0:03:01]}
2... g6 {[%clk 0:03:00.7]} 3. d3 {[%clk 0:03:00.9]} 3... Bg7 {[%clk 0:02:58.8]}
4. e3 {[%clk 0:03:01.4]} 4... O-O {[%clk 0:02:59.5]} 5. h3 {[%clk 0:03:01.4]}
5... d6 {[%clk 0:03:00.4]} 6. Ne2 {[%clk 0:03:01.7]} 6... e5 {[%clk 0:03:00.9]}
7. b3 {[%clk 0:03:01.5]} 7... Nbd7 {[%clk 0:03:01.4]} 8. Bb2 {[%clk 0:03:01.5]}
8... Re8 {[%clk 0:03:02.1]} 9. Nd2 {[%clk 0:03:01.5]} 9... c6 {[%clk 0:03:01.5]}
10. a3 {[%clk 0:03:02]} 10... Rb8 {[%clk 0:02:58.9]} 11. c4 {[%clk 0:02:53.9]}
11... Qe7 {[%clk 0:02:55.8]} 12. Qc2 {[%clk 0:02:52.4]} 12... Nf8 {[%clk
0:02:53.5]} 13. b4 {[%clk 0:02:30.5]} 13... Bd7 {[%clk 0:02:43.6]} 14. Nb3
{[%clk 0:02:29.3]} 14... Qd8 {[%clk 0:02:39.1]} 15. d4 {[%clk 0:02:27.1]} 15...
e4 {[%clk 0:02:34]} 16. Nc3 {[%clk 0:02:12]} 16... Qe7 {[%clk 0:02:19.5]} 17. d5
{[%clk 0:01:52.7]} 17... Rbc8 {[%clk 0:02:18.6]} 18. Qd2 {[%clk 0:01:48.3]}
18... cxd5 {[%clk 0:01:47.9]} 19. cxd5 {[%clk 0:01:45]} 19... Rc7 {[%clk
0:01:38]} 20. O-O {[%clk 0:01:16.7]} 20... Rec8 {[%clk 0:01:37.2]} 21. Rac1
{[%clk 0:01:16.4]} 21... h5 {[%clk 0:01:33.8]} 22. Rc2 {[%clk 0:00:59.1]} 22...
Bf5 {[%clk 0:01:32.1]} 23. Rfc1 {[%clk 0:00:57.4]} 23... N8d7 {[%clk 0:01:17.9]}
24. Nb5 {[%clk 0:00:52.5]} 24... Rxc2 {[%clk 0:01:16.3]} 25. Rxc2 {[%clk
0:00:53.4]} 25... Rxc2 {[%clk 0:01:13.4]} 26. Qxc2 {[%clk 0:00:54.3]} 26... Nxd5
{[%clk 0:01:07.8]} 27. Bxg7 {[%clk 0:00:51.9]} 27... Kxg7 {[%clk 0:01:05.8]} 28.
Nxa7 {[%clk 0:00:52.1]} 28... Ne5 {[%clk 0:01:04.1]} 29. Nd4 {[%clk 0:00:45.3]}
29... Nf6 {[%clk 0:00:53]} 30. Nc8 {[%clk 0:00:34.6]} 30... Bxc8 {[%clk
0:00:49.1]} 31. Qxc8 {[%clk 0:00:35.1]} 31... d5 {[%clk 0:00:49.2]} 32. Bf1
{[%clk 0:00:26.6]} 32... h4 {[%clk 0:00:47.8]} 33. g4 {[%clk 0:00:23.9]} 33...
Nf3+ {[%clk 0:00:37.3]} 34. Nxf3 {[%clk 0:00:23.3]} 34... exf3 {[%clk
0:00:38.2]} 35. Qc5 {[%clk 0:00:22.7]} 35... Qe6 {[%clk 0:00:31]} 36. Qd4 {[%clk
0:00:19.1]} 36... g5 {[%clk 0:00:31.2]} 37. a4 {[%clk 0:00:18]} 37... Qc6 {[%clk
0:00:29.1]} 38. b5 {[%clk 0:00:18.1]} 38... Qc1 {[%clk 0:00:26.3]} 39. a5 {[%clk
0:00:18.3]} 39... Kg6 {[%clk 0:00:24.2]} 40. a6 {[%clk 0:00:18.8]} 40... bxa6
{[%clk 0:00:20.4]} 41. bxa6 {[%clk 0:00:19.7]} 41... Ne4 {[%clk 0:00:09.9]} 42.
a7 {[%clk 0:00:19.7]} 42... Qe1 {[%clk 0:00:08.6]} 43. Qb2 {[%clk 0:00:14.7]}
43... Ng3 {[%clk 0:00:07.8]} 44. fxg3 {[%clk 0:00:12.9]} 44... Qxg3+ {[%clk
0:00:08.5]} 45. Kh1 {[%clk 0:00:12.8]} 45... f2 {[%clk 0:00:07.5]} 46. Bg2
{[%clk 0:00:10.6]} 46... Qxe3 {[%clk 0:00:06.6]} 47. Qb1+ {[%clk 0:00:06.1]}
47... Kg7 {[%clk 0:00:04]} 48. a8=Q {[%clk 0:00:06.3]} 48... Qe1+ {[%clk
0:00:03.9]} 49. Qxe1 {[%clk 0:00:06.7]} 49... fxe1=Q+ {[%clk 0:00:04.2]} 50. Kh2
{[%clk 0:00:07.3]} 50... Qg3+ {[%clk 0:00:04.6]} 51. Kg1 {[%clk 0:00:08]} 51...
Qe1+ {[%clk 0:00:04.2]} 52. Kh2 {[%clk 0:00:08.6]} 52... Qe5+ {[%clk 0:00:03.8]}
53. Kh1 {[%clk 0:00:08.8]} 53... d4 {[%clk 0:00:04.7]} 54. Qe4 {[%clk
0:00:07.9]} 54... Qf6 {[%clk 0:00:04.8]} 55. Qd3 {[%clk 0:00:07.7]} 55... Qe5
{[%clk 0:00:04.9]} 56. Be4 {[%clk 0:00:08.2]} 56... f6 {[%clk 0:00:04.8]} 57.
Bf5 {[%clk 0:00:09.1]} 57... Qe1+ {[%clk 0:00:04.5]} 58. Kg2 {[%clk 0:00:09]}
58... Qe7 {[%clk 0:00:03.7]} 59. Qe4 {[%clk 0:00:09.5]} 59... Qc7 {[%clk
0:00:02.3]} 60. Kf3 {[%clk 0:00:10]} 60... Qf7 {[%clk 0:00:01.8]} 61. Ke2 {[%clk
0:00:10.9]} 61... Qd7 {[%clk 0:00:02]} 62. Kd3 {[%clk 0:00:11.8]} 62... Qb5+
{[%clk 0:00:02.3]} 63. Kd2 {[%clk 0:00:11.8]} 63... Qb2+ {[%clk 0:00:02.6]} 64.
Kd3 {[%clk 0:00:11.9]} 64... Qc3+ {[%clk 0:00:03.1]} 65. Ke2 {[%clk 0:00:12.3]}
65... Qb2+ {[%clk 0:00:02.9]} 66. Kf3 {[%clk 0:00:12.3]} 66... Qc3+ {[%clk
0:00:03.2]} 67. Qd3 {[%clk 0:00:13.2]} 67... Qe1 {[%clk 0:00:03]} 68. Qxd4
{[%clk 0:00:12.8]} 68... Qh1+ {[%clk 0:00:03.4]} 69. Ke3 {[%clk 0:00:12.9]}
69... Qg1+ {[%clk 0:00:03.8]} 70. Kd3 {[%clk 0:00:13.8]} 70... Qg3+ {[%clk
0:00:04]} 71. Kc4 {[%clk 0:00:14.2]} 71... Qc7+ {[%clk 0:00:03.2]} 72. Qc5
{[%clk 0:00:14.8]} 72... Qf4+ {[%clk 0:00:03.3]} 73. Kb5 {[%clk 0:00:14.9]}
73... Qb8+ {[%clk 0:00:02.9]} 74. Qb6 {[%clk 0:00:15.3]} 74... Qe5+ {[%clk
0:00:03.1]} 75. Ka6 {[%clk 0:00:15.7]} 75... Qe2+ {[%clk 0:00:03.2]} 76. Qb5
{[%clk 0:00:15.7]} 76... Qe5 {[%clk 0:00:01.9]} 77. Qxe5 {[%clk 0:00:15.1]}
77... fxe5 {[%clk 0:00:01.4]} 78. Kb5 {[%clk 0:00:15.7]} 78... Kf6 {[%clk
0:00:02]} 79. Kc4 {[%clk 0:00:16.1]} 79... e4 {[%clk 0:00:02.7]} 80. Kd4 {[%clk
0:00:14.9]} 80... Ke7 {[%clk 0:00:02.3]} 81. Kxe4 {[%clk 0:00:15.3]} 81... Kf6
{[%clk 0:00:03.2]} 82. Kd4 {[%clk 0:00:15.5]} 82... Ke7 {[%clk 0:00:03.9]} 83.
Ke5 {[%clk 0:00:16.2]} 83... Kf7 {[%clk 0:00:04.8]} 84. Kd6 {[%clk 0:00:16.3]}
84... Kg7 {[%clk 0:00:05.5]} 85. Ke6 {[%clk 0:00:16.6]} 85... Kh6 {[%clk
0:00:05.4]} 86. Be4 {[%clk 0:00:16.3]} 86... Kg7 {[%clk 0:00:05.6]} 87. Kf5
{[%clk 0:00:16.9]} 87... Kh6 {[%clk 0:00:06.4]} 88. Bf3 {[%clk 0:00:17.5]} 88...
Kg7 {[%clk 0:00:07.1]} 89. Kxg5 {[%clk 0:00:18.1]} 89... Kh8 {[%clk 0:00:07.4]}
90. Kxh4 {[%clk 0:00:19]} 90... Kg7 {[%clk 0:00:07.7]} 91. Kg3 {[%clk
0:00:19.9]} 91... Kh6 {[%clk 0:00:08.6]} 92. h4 {[%clk 0:00:20.8]} 92... Kg6
{[%clk 0:00:09]} 93. h5+ {[%clk 0:00:20.9]} 93... Kh6 {[%clk 0:00:09.9]} 94. Kh4
{[%clk 0:00:21.2]} 94... Kg7 {[%clk 0:00:10.3]} 95. g5 {[%clk 0:00:22.1]} 95...
Kh7 {[%clk 0:00:10.8]} 96. h6 {[%clk 0:00:22.4]} 96... Kg6 {[%clk 0:00:11.1]}
97. Be4+ {[%clk 0:00:22.9]} 97... Kf7 {[%clk 0:00:11.5]} 98. Bh7 {[%clk
0:00:23.2]} 98... Kf8 {[%clk 0:00:11.5]} 99. g6 {[%clk 0:00:23.7]} 99... Ke7
{[%clk 0:00:11.9]} 100. g7 {[%clk 0:00:24.3]} 100... Kf7 {[%clk 0:00:12.8]} 101.
g8=Q+ {[%clk 0:00:24.8]} 101... Ke7 {[%clk 0:00:13.7]} 102. Qg7+ {[%clk
0:00:25.3]} 1-0

[Event "Early-Titled-Tuesday-Blitz-January-16-2024"]
[Site "Chess.com"]
[Date "2024.01.16"]
[Round "5"]
[White "mbojan"]
[Black "chucksterf10"]
[Result "1/2-1/2"]
[WhiteElo "2877"]
[BlackElo "2662"]
[TimeControl "180+1"]
[EndTime "9:00:45 PST"]
[Termination "Game drawn by 50-move rule"]

1. a3 {[%clk 0:02:47.2]} 1... e5 {[%clk 0:02:58.6]} 2. e3 {[%clk 0:02:47.7]}
2... d5 {[%clk 0:02:58.9]} 3. d4 {[%clk 0:02:48.3]} 3... exd4 {[%clk 0:02:57.5]}
4. exd4 {[%clk 0:02:49.2]} 4... Nf6 {[%clk 0:02:57.5]} 5. Bd3 {[%clk 0:02:49.6]}
5... Bd6 {[%clk 0:02:57.7]} 6. Ne2 {[%clk 0:02:50]} 6... O-O {[%clk 0:02:58.1]}
7. Nbc3 {[%clk 0:02:50.6]} 7... c6 {[%clk 0:02:57.7]} 8. O-O {[%clk 0:02:50.9]}
8... h6 {[%clk 0:02:58]} 9. Bf4 {[%clk 0:02:51.1]} 9... Re8 {[%clk 0:02:57.3]}
10. Qd2 {[%clk 0:02:51.6]} 10... Be6 {[%clk 0:02:47.1]} 11. Rae1 {[%clk
0:02:50]} 11... a5 {[%clk 0:02:46]} 12. f3 {[%clk 0:02:46]} 12... b5 {[%clk
0:02:43.9]} 13. Bxd6 {[%clk 0:02:45.5]} 13... Qxd6 {[%clk 0:02:44.8]} 14. Qf4
{[%clk 0:02:45.9]} 14... Qd7 {[%clk 0:02:38]} 15. g4 {[%clk 0:02:37.1]} 15...
Na6 {[%clk 0:02:06.6]} 16. Ng3 {[%clk 0:02:36.6]} 16... Qc7 {[%clk 0:02:05.8]}
17. Qxc7 {[%clk 0:02:25.1]} 17... Nxc7 {[%clk 0:02:05.5]} 18. h4 {[%clk
0:02:26]} 18... Bd7 {[%clk 0:01:48.7]} 19. Kf2 {[%clk 0:02:24.7]} 19... Ne6
{[%clk 0:01:42.4]} 20. Nce2 {[%clk 0:02:18.4]} 20... b4 {[%clk 0:01:41.2]} 21.
Ra1 {[%clk 0:02:14.7]} 21... c5 {[%clk 0:01:40.3]} 22. dxc5 {[%clk 0:02:13.7]}
22... Nxc5 {[%clk 0:01:41.2]} 23. axb4 {[%clk 0:02:13.3]} 23... axb4 {[%clk
0:01:38.9]} 24. Nd4 {[%clk 0:02:13.8]} 24... g6 {[%clk 0:01:13.5]} 25. Nge2
{[%clk 0:02:07.9]} 25... Rec8 {[%clk 0:01:05.4]} 26. b3 {[%clk 0:02:00.5]} 26...
Kg7 {[%clk 0:00:59.4]} 27. Nf4 {[%clk 0:02:00.4]} 27... Ne6 {[%clk 0:00:45.2]}
28. Nfe2 {[%clk 0:01:47.7]} 28... Nc5 {[%clk 0:00:44.9]} 29. Rfd1 {[%clk
0:01:45.9]} 29... Kf8 {[%clk 0:00:33.8]} 30. Re1 {[%clk 0:01:46.2]} 30... Re8
{[%clk 0:00:33.5]} 31. Nf4 {[%clk 0:01:44.3]} 31... Rxe1 {[%clk 0:00:33.6]} 32.
Rxa8+ {[%clk 0:01:44.2]} 32... Re8 {[%clk 0:00:32.9]} 33. Ra7 {[%clk 0:01:44.4]}
33... Rc8 {[%clk 0:00:30.5]} 34. g5 {[%clk 0:01:43.4]} 34... hxg5 {[%clk
0:00:30]} 35. hxg5 {[%clk 0:01:44.3]} 35... Nh5 {[%clk 0:00:29.8]} 36. Nxd5
{[%clk 0:01:42.3]} 36... Be6 {[%clk 0:00:25.5]} 37. Nf6 {[%clk 0:01:40.3]} 37...
Nxd3+ {[%clk 0:00:22.5]} 38. cxd3 {[%clk 0:01:40.3]} 38... Nf4 {[%clk
0:00:19.6]} 39. Rb7 {[%clk 0:01:29.9]} 39... Nh3+ {[%clk 0:00:18.9]} 40. Ke3
{[%clk 0:01:29.5]} 40... Nxg5 {[%clk 0:00:19.8]} 41. Rxb4 {[%clk 0:01:29.4]}
41... Kg7 {[%clk 0:00:19.7]} 42. Ne4 {[%clk 0:01:30.1]} 42... Nxe4 {[%clk
0:00:18.2]} 43. Nxe6+ {[%clk 0:01:28.1]} 43... fxe6 {[%clk 0:00:19.1]} 44. fxe4
{[%clk 0:01:28.7]} 44... g5 {[%clk 0:00:19.4]} 45. Rb7+ {[%clk 0:01:19.7]} 45...
Kf6 {[%clk 0:00:19.7]} 46. b4 {[%clk 0:01:20.4]} 46... g4 {[%clk 0:00:16.5]} 47.
Kf4 {[%clk 0:01:20.8]} 47... Rc3 {[%clk 0:00:16.1]} 48. Rd7 {[%clk 0:01:09.4]}
48... Rb3 {[%clk 0:00:16.2]} 49. e5+ {[%clk 0:00:47.4]} 49... Kg6 {[%clk
0:00:16.3]} 50. Kxg4 {[%clk 0:00:45.2]} 50... Rxb4+ {[%clk 0:00:16.4]} 51. d4
{[%clk 0:00:46]} 51... Rb1 {[%clk 0:00:15.8]} 52. Kf4 {[%clk 0:00:46]} 52...
Rf1+ {[%clk 0:00:15.3]} 53. Ke4 {[%clk 0:00:46.2]} 53... Re1+ {[%clk 0:00:14.8]}
54. Kd3 {[%clk 0:00:46.8]} 54... Rd1+ {[%clk 0:00:15.5]} 55. Ke3 {[%clk
0:00:46.4]} 55... Re1+ {[%clk 0:00:15.8]} 56. Kd2 {[%clk 0:00:46.6]} 56... Ra1
{[%clk 0:00:15.7]} 57. Kd3 {[%clk 0:00:46.2]} 57... Rd1+ {[%clk 0:00:15.5]} 58.
Kc3 {[%clk 0:00:42]} 58... Kf5 {[%clk 0:00:14]} 59. Rh7 {[%clk 0:00:40.4]} 59...
Rc1+ {[%clk 0:00:13.5]} 60. Kd3 {[%clk 0:00:40.5]} 60... Rd1+ {[%clk 0:00:13.9]}
61. Ke3 {[%clk 0:00:39.1]} 61... Re1+ {[%clk 0:00:14.3]} 62. Kd2 {[%clk
0:00:39.7]} 62... Ra1 {[%clk 0:00:12.2]} 63. Rh4 {[%clk 0:00:39.5]} 63... Ra3
{[%clk 0:00:11.6]} 64. Kc2 {[%clk 0:00:35.8]} 64... Rg3 {[%clk 0:00:11.4]} 65.
Kd2 {[%clk 0:00:32.3]} 65... Ra3 {[%clk 0:00:11.7]} 66. Ke2 {[%clk 0:00:32.7]}
66... Rb3 {[%clk 0:00:12.1]} 67. Kf2 {[%clk 0:00:27.1]} 67... Ra3 {[%clk
0:00:12.1]} 68. Kg2 {[%clk 0:00:27.9]} 68... Rb3 {[%clk 0:00:12.3]} 69. Rh8
{[%clk 0:00:28.2]} 69... Ke4 {[%clk 0:00:11.6]} 70. Rd8 {[%clk 0:00:27.3]} 70...
Rd3 {[%clk 0:00:11.5]} 71. Rd6 {[%clk 0:00:27.6]} 71... Rxd4 {[%clk 0:00:11.5]}
72. Rxe6 {[%clk 0:00:28.3]} 72... Rd5 {[%clk 0:00:12.2]} 73. Re8 {[%clk
0:00:29.2]} 73... Rxe5 {[%clk 0:00:12.6]} 74. Ra8 {[%clk 0:00:30.1]} 74... Rd5
{[%clk 0:00:13]} 75. Kg3 {[%clk 0:00:30.4]} 75... Rd3+ {[%clk 0:00:13.4]} 76.
Kg4 {[%clk 0:00:31]} 76... Rd4 {[%clk 0:00:13.9]} 77. Re8+ {[%clk 0:00:31.2]}
77... Kd3+ {[%clk 0:00:14.3]} 78. Kf3 {[%clk 0:00:31.7]} 78... Rd7 {[%clk
0:00:14.9]} 79. Re1 {[%clk 0:00:31.5]} 79... Rf7+ {[%clk 0:00:14.9]} 80. Kg4
{[%clk 0:00:32]} 80... Kd2 {[%clk 0:00:15.5]} 81. Re8 {[%clk 0:00:32]} 81...
Rg7+ {[%clk 0:00:15.9]} 82. Kf5 {[%clk 0:00:32.6]} 82... Rd7 {[%clk 0:00:16.4]}
83. Re6 {[%clk 0:00:32.7]} 83... Rd5+ {[%clk 0:00:16.7]} 84. Ke4 {[%clk
0:00:33.4]} 84... Rd3 {[%clk 0:00:17]} 85. Ra6 {[%clk 0:00:33.4]} 85... Re3+
{[%clk 0:00:16.8]} 86. Kf4 {[%clk 0:00:34.1]} 86... Rc3 {[%clk 0:00:16.9]} 87.
Ra4 {[%clk 0:00:34.7]} 87... Kd3 {[%clk 0:00:16.8]} 88. Kf3 {[%clk 0:00:34.9]}
88... Rc7 {[%clk 0:00:17]} 89. Ra3+ {[%clk 0:00:35.2]} 89... Kd4 {[%clk
0:00:17.5]} 90. Re3 {[%clk 0:00:33.6]} 90... Rf7+ {[%clk 0:00:17.4]} 91. Ke2
{[%clk 0:00:34.3]} 91... Rh7 {[%clk 0:00:18.1]} 92. Rd3+ {[%clk 0:00:34.6]}
92... Ke4 {[%clk 0:00:18.3]} 93. Re3+ {[%clk 0:00:35.3]} 93... Kd4 {[%clk
0:00:18.9]} 94. Rd3+ {[%clk 0:00:35.9]} 94... Ke4 {[%clk 0:00:19.6]} 95. Rd8
{[%clk 0:00:36.6]} 95... Rh2+ {[%clk 0:00:19.5]} 96. Kd1 {[%clk 0:00:37.3]}
96... Ke3 {[%clk 0:00:19.8]} 97. Re8+ {[%clk 0:00:37.1]} 97... Kd3 {[%clk
0:00:20.2]} 98. Rd8+ {[%clk 0:00:37.7]} 98... Ke3 {[%clk 0:00:20.8]} 99. Kc1
{[%clk 0:00:37.8]} 99... Rg2 {[%clk 0:00:20.9]} 100. Rh8 {[%clk 0:00:37.7]}
100... Kd3 {[%clk 0:00:20.4]} 101. Rh3+ {[%clk 0:00:38]} 101... Kd4 {[%clk
0:00:19.9]} 102. Kd1 {[%clk 0:00:38.7]} 102... Rf2 {[%clk 0:00:20.1]} 103. Ke1
{[%clk 0:00:39.4]} 103... Ra2 {[%clk 0:00:20.7]} 104. Rg3 {[%clk 0:00:39.6]}
104... Kc4 {[%clk 0:00:21.1]} 105. Kd1 {[%clk 0:00:39.9]} 105... Ra1+ {[%clk
0:00:21.5]} 106. Kc2 {[%clk 0:00:40.1]} 106... Rh1 {[%clk 0:00:22.2]} 107. Rg2
{[%clk 0:00:40.2]} 107... Rh4 {[%clk 0:00:21.9]} 108. Kd2 {[%clk 0:00:40.6]}
108... Rd4+ {[%clk 0:00:21.7]} 109. Ke3 {[%clk 0:00:41.3]} 109... Rd3+ {[%clk
0:00:22.3]} 110. Ke4 {[%clk 0:00:42]} 110... Rd4+ {[%clk 0:00:22.7]} 111. Ke5
{[%clk 0:00:42.7]} 111... Rd5+ {[%clk 0:00:23.3]} 112. Ke6 {[%clk 0:00:43.2]}
112... Rd3 {[%clk 0:00:24]} 113. Ke5 {[%clk 0:00:43.3]} 113... Re3+ {[%clk
0:00:24.5]} 114. Kf4 {[%clk 0:00:43.8]} 114... Re8 {[%clk 0:00:24.8]} 115. Rg7
{[%clk 0:00:44.2]} 115... Rf8+ {[%clk 0:00:24.9]} 116. Ke5 {[%clk 0:00:44.6]}
116... Re8+ {[%clk 0:00:25.4]} 117. Kf6 {[%clk 0:00:45.2]} 117... Rd8 {[%clk
0:00:25.9]} 118. Rf7 {[%clk 0:00:46.1]} 118... Kd5 {[%clk 0:00:25.9]} 119. Kg7
{[%clk 0:00:47]} 119... Ke6 {[%clk 0:00:25.9]} 120. Rf6+ {[%clk 0:00:47.9]}
120... Ke5 {[%clk 0:00:26.3]} 121. Rf7 {[%clk 0:00:48.6]} 121... Rd6 {[%clk
0:00:26.8]} 122. Rf8 {[%clk 0:00:48.2]} 122... Rd7+ {[%clk 0:00:26.5]} 123. Kg6
{[%clk 0:00:47.6]} 123... Rd1 {[%clk 0:00:26.7]} 1/2-1/2